Cogmind - Beta 15 @@@ ROGUE MODE // 2025.08.09 @ 16:25:53 Player: muurn Result: Destroyed by Y-45 Defender with Heavy Assault Rifle Performance ------------- Evolutions (0) 0 Regions Visited (2) 400 Robots Destroyed (10) 50 Value Destroyed (233) 233 Prototype IDs (1) 20 Alien Tech Used (0) 0 Bonus (50) 50 TOTAL SCORE: 753 Bonus ------- Follower Combat Kills 50 Cogmind --------- Core Integrity 0/250 Matter 264/300 Energy 125/125 System Corruption 0% Temperature Cool (93) Movement Core (550) Ox10 Location -10/Mines Parts ------- > --- POWER (1) -------- Light Ion Engine > --- PROPULSION (2) --- (None) > --- UTILITY (2) ------ Large Storage Unit Core Shielding > --- WEAPON (2) ------- Beamcaster Assault Rifle > --- INVENTORY (15) --- Light Angular Momentum Engine Light Treads Light Treads Medium Storage Unit Medium Matter Pod (100) Seismic Detector ECM Suite Particle Cannon Particle Cannon Advanced Beam Cannon Assault Rifle Peak State ------------ > --- POWER ------------ Ion Engine > --- PROPULSION ------- Wheel Wheel > --- UTILITY ---------- Large Storage Unit Seismic Detector > --- WEAPON ----------- Advanced Beam Cannon Advanced Beam Cannon > --- INVENTORY -------- Light Ion Engine Light Treads Light Treads Medium Storage Unit Medium Matter Pod ECM Suite Core Shielding Particle Cannon Particle Cannon Advanced Beam Cannon Assault Rifle Assault Rifle Signal Generator [Rating: 13] Favorites ----------- Power Ion Engine Engine Ion Engine Propulsion Wheel Treads Light Treads Leg Aluminum Leg Wheel Wheel Utility Large Storage Unit Device Seismic Detector Storage Large Storage Unit Protection Core Shielding Weapon Advanced Beam Cannon Energy Gun EM Pulse Gun Energy Cannon Advanced Beam Cannon Ballistic Gun Assault Rifle Build | -11 -10 -10 ------- Run | Yrd Mat Min Slots Evolved . | . . . Power . | . . . Propulsion . | . . . Utility . | . . . Weapon . | . . . Parts Attached 22 | 7 10 5 Power 4 | 1 1 2 Engine 4 | 1 1 2 Core . | . . . Reactor . | . . . Propulsion 5 | 3 2 . Treads 2 | 2 . . Leg 1 | 1 . . Wheel 2 | . 2 . Hover . | . . . Flight . | . . . Utility 5 | 1 3 1 Device 2 | . 2 . Storage 2 | 1 1 . Processor . | . . . Hackware . | . . . Protection 1 | . . 1 Artifact . | . . . Weapon 8 | 2 4 2 Energy Gun 3 | 2 . 1 Energy Cannon 3 | . 3 . Ballistic Gun 2 | . 1 1 Ballistic Cannon . | . . . Launcher . | . . . Special Weapon . | . . . Impact Weapon . | . . . Slashing Weapon . | . . . Piercing Weapon . | . . . Special Melee Weapon . | . . . Unidentified Prototypes 1 | . 1 . Parts Lost 3 | . . 3 Power 1 | . . 1 Propulsion 2 | . . 2 Utility . | . . . Weapon . | . . . Highest Loss Streak 2 | . . 2 To Critical Strikes . | . . . Average Backups 8 | 3 7 11 Power . | . . 1 Propulsion 1 | 1 2 2 Utility 2 | . 2 4 Weapon 3 | . 2 4 Tool/Special . | . . . Unused Backups 6 | . . 6 Power 1 | . . 1 Propulsion . | . . . Utility 2 | . . 2 Weapon 3 | . . 3 Tool/Special . | . . . Average Slot Usage (%) 98 | . 99 98 Engine 14 | . 14 14 Treads 8 | . 14 . Wheel 18 | . 13 26 Device 13 | . 13 13 Storage 14 | . 14 14 Energy Gun 9 | . 15 . Energy Cannon 10 | . 11 9 Ballistic Gun 7 | . 1 17 Peak Build Rating 13 | 6 12 13 Average Rating 9 | 4 8 11 On Entrance 6 | . 6 12 Naked Turns . | . . . Heaviest Build 35 | 11 35 34 Greatest Support 40 | 40 40 20 Greatest Overweight (x) 3 | . 1 3 Average Overweight (x) . | . . 1 Largest Inventory Capacity 15 | 8 15 15 Average Capacity 12 | 6 12 15 Most Carried 13 | 5 13 13 Average Carried 8 | 3 7 11 Final Capacity 15 | 8 15 15 Final Carried 12 | 3 12 11 Class Distribution -------------------- 100% | Mutant Dominant Class ---------------- Mutant | -10/Materials Mutant | -10/Mines Resources | -11 -10 -10 ----------- Run | Yrd Mat Min Matter Collected 564 | 226 144 194 Remotely . | . . . Salvage Created 274 | . 105 169 Parts 22 | . 9 13 Haulers Intercepted . | . . . Recyclers Shooed . | . . . Parts Field Recycled . | . . . Retrieved Matter . | . . . Parts Self-Destructed . | . . . Prevented . | . . . Kills | -11 -10 -10 ------- Run | Yrd Mat Min Combat Hostiles Destroyed 10 | . 3 7 Guns 8 | . 3 5 Cannons 1 | . . 1 Classes Destroyed 2 | . 1 1 Swarmer 5 | . . 5 Grunt 5 | . 3 2 Best Kill Streak 3 | . 2 3 Combat Bots Only 3 | . 2 3 Max Kills in Single Turn 2 | . 1 2 Gunslinging 1 | . . 1 Exploded . | . . . Melee . | . . . Uniques/NPCs Destroyed . | . . . Combat | -11 -10 -10 -------- Run | Yrd Mat Min Hostile Shots Fired 88 | . 12 76 Missed 19 | . 3 16 Hits 69 | . 9 60 Projectile 69 | . 9 60 Damage Taken 907 | . 114 793 Core 250 | . . 250 Absorbed by Shields . | . . . Redirected to Shielding 7 | . . 7 Core Remaining (%) 100 | 100 . . Volleys Fired 37 | 1 9 27 Largest 2 | 2 2 2 Hottest 136 | 80 136 136 Shots Fired 66 | 2 18 46 Gun 46 | 2 16 28 Cannon 20 | . 2 18 Launcher . | . . . Special . | . . . Kinetic 25 | . . 25 Thermal 32 | 1 10 21 Explosive . | . . . Electromagnetic 9 | 1 8 . Robot Hit Streak 6 | . 4 6 Robot Miss Streak 3 | . 1 3 Penetration Max . | . . . Secondary Targets 2 | . . 2 Max Gunslinging Chain 1 | . . 1 Shots Hit Robots 39 | . 11 28 Core Hits 17 | . 6 11 Critical Kills 1 | . . 1 Critical Parts Destroyed . | . . . Critical Strikes 2 | . . 2 Burn 1 | . . 1 Meltdown 1 | . . 1 Melee Attacks . | . . . Impact . | . . . Slashing . | . . . Piercing . | . . . Sneak Attacks . | . . . Combat Hostiles . | . . . Follow-up Attacks . | . . . Damage Inflicted 688 | . 177 511 Guns 416 | . 130 286 Cannons 225 | . . 225 Explosions 47 | . 47 . Melee . | . . . Ramming . | . . . Kinetic 222 | . . 222 Thermal 404 | . 115 289 Explosive . | . . . Electromagnetic 62 | . 62 . Impact . | . . . Slashing . | . . . Piercing . | . . . Highest Corruption . | . . . Average Corruption . | . . . Corruption Purged . | . . . Corruption Blocked . | . . . Overload Shots . | . . . Overflow Damage 1 | . . 1 Projectiles 1 | . . 1 Explosions . | . . . Melee . | . . . Knockbacks . | . . . Impact . | . . . Kinetic . | . . . Secondary . | . . . Self-Inflicted Damage 15 | . 15 . Shots 1 | . 1 . Rammed . | . . . Targets Rammed . | . . . Kicked . | . . . Crushed . | . . . Highest Temperature 323 | 18 162 323 Average Temperature 117 | 12 66 143 Received Heat Transfer 300 | . 54 246 Effects 3 | . . 3 Energy Bleed 1 | . . 1 Interference 2 | . . 2 Siege Activations . | . . . Martial Activations . | . . . Shielding Activations . | . . . Robots Disrupted . | . . . Combat Hostiles . | . . . Robots Corrupted . | . . . Combat Hostiles . | . . . Parts Fried . | . . . Impact Corruptions . | . . . Robots Melted 1 | . . 1 Combat Hostiles 1 | . . 1 Parts Melted 1 | . . 1 Heat Transferred 792 | . 200 592 Parts Sabotaged . | . . . Parts Stolen . | . . . Parts Stripped . | . . . Power Chain Reactions 1 | . 1 . Alert | -11 -10 -10 ------- Run | Yrd Mat Min Maximum Alert Level . | . . . Low Security (%) 100 | 100 100 100 Level 1 . | . . . Level 2 . | . . . Level 3 . | . . . Level 4 . | . . . Level 5 . | . . . High Security . | . . . Max Security . | . . . Peak Influence 95 | . 44 95 Initial . | . . . Average 16 | . 5 36 Influence Increases 324 | . 109 215 Destroy 0b10 Robot/C 240 | . 60 180 Destroy Leader 50 | . 20 30 Allied During Kill 5 | . . 5 Successful Hack 10 | . 10 . Destroy Structure 4 | . 4 . Partial Spotted 15 | . 15 . Influence Decreases 324 | . 109 215 Time Decay 293 | . 109 184 Lost Part 11 | . . 11 Lost Ally 20 | . . 20 Squads Dispatched 3 | . 2 1 Investigation . | . . . Extermination . | . . . Reinforcement 2 | . 2 . Assault 1 | . . 1 Garrison . | . . . Intercept . | . . . Searches Triggered . | . . . Construction Impeded . | . . . Haulers Reinforced . | . . . Active Scanning Responses . | . . . Cargo Convoy Interrupts . | . . . Stealth | -11 -10 -10 --------- Run | Yrd Mat Min Distress Signals 2 | . 2 . Communications Jammed . | . . . Distress Signals . | . . . Times Spotted 18 | . 5 13 Peak Tracking Total 4 | . 2 4 Tactical Retreats 1 | . 1 . Traps | -11 -10 -10 ------- Run | Yrd Mat Min Traps Triggered . | . . . Indirectly . | . . . Trap Hack Attempts . | . . . Triggered . | . . . Disarmed 6 | . 6 . Reprogrammed . | . . . Reused . | . . . Traps Extracted . | . . . Installed . | . . . Triggered . | . . . Machines | -11 -10 -10 ---------- Run | Yrd Mat Min Machines Disabled 1 | . . 1 Max in Single Turn 1 | . . 1 Machines Repaired . | . . . Machines Dismantled . | . . . Machines Sabotaged . | . . . Overloaded Fab Kills . | . . . Hacking | -11 -10 -10 --------- Run | Yrd Mat Min Machines Accessed 4 | . 4 . Terminals 3 | . 3 . Fabricators . | . . . Repair Stations . | . . . Recycling Units 1 | . 1 . Scanalyzers . | . . . Garrison Access . | . . . Total Hacks 18 | . 18 . Successful 12 | . 12 . Failed 5 | . 5 . Catastrophic . | . . . Database Lockouts 1 | . 1 . Manual . | . . . Terminals 14 | . 14 . Fabricators . | . . . Repair Stations . | . . . Recycling Units 4 | . 4 . Scanalyzers . | . . . Garrison Access . | . . . Terminal Hacks 9 | . 9 . Record 5 | . 5 . Alert Level 1 | . 1 . Locate Traps 2 | . 2 . Disarm Traps 1 | . 1 . Fabricator Hacks . | . . . Repair Station Hacks . | . . . Recycling Unit Hacks 3 | . 3 . Report Inventory 1 | . 1 . Retrieve Matter 2 | . 2 . Scanalyzer . | . . . Garrison Access Hacks . | . . . Unauthorized Hacks . | . . . Terminals . | . . . Fabricators . | . . . Repair Stations . | . . . Recycling Units . | . . . Scanalyzers . | . . . Garrison Access . | . . . Data Cores Recovered . | . . . Used . | . . . Hacking Detections 3 | . 3 . Full Trace Events 3 | . 3 . Feedback Events . | . . . Feedback Blocked . | . . . Robot Schematics Acquired . | . . . Robots Built . | . . . Authchips . | . . . Time . | . . . Total Robot Build Rating . | . . . Part Schematics Acquired . | . . . Parts Built . | . . . Authchips . | . . . Time . | . . . Total Part Build Rating . | . . . Parts Repaired . | . . . Time . | . . . Parts Recycled . | . . . Recycled Matter . | . . . Retrieved Matter . | . . . Retrieved Components . | . . . Parts Scanalyzed . | . . . Part Schematics Acquired . | . . . Parts Damaged . | . . . Bothacking | -11 -10 -10 ------------ Run | Yrd Mat Min Used RIF Installer . | . . . Robots Hacked . | . . . Non-combat . | . . . Combat . | . . . Robot Hacks Applied . | . . . Relay Couplers Released . | . . . Fabnet Peak Effective % . | . . . Robots Rewired . | . . . Allies Hacked . | . . . Hacks Repelled . | . . . Allies | -11 -10 -10 -------- Run | Yrd Mat Min Total Allies 1 | . . 1 Largest Group 1 | . . 1 Highest-Rated Group 31 | . . 31 Highest-Rated Ally 31 | . . 31 Total Orders . | . . . Ally Attacks 13 | . . 13 Total Damage 209 | . . 209 Kills 2 | . . 2 Allies Corrupted . | . . . Allies Melted . | . . . Intel | -11 -10 -10 ------- Run | Yrd Mat Min Active Infowar (turns) 733 | . 700 33 Seismic 233 | . 200 33 ECM 500 | . 500 . Robot Analysis Total . | . . . Derelict Logs Recovered 1 | . . 1 Drone Launches . | . . . Drone Recoveries . | . . . Exploration | -11 -10 -10 ------------- Run | Yrd Mat Min Turns Passed 1351 | 123 741 487 Spaces Moved 1067 | 83 572 412 Core 24 | 24 . . Treads 275 | 58 217 . Legs 1 | 1 . . Wheels 767 | . 355 412 Hover . | . . . Flight . | . . . Fastest Speed 50 | 50 95 95 Average Speed 111 | 127 119 96 Slowest Speed 160 | 160 160 125 Overloaded Moves . | . . . Propulsion Burnouts . | . . . Robots Hopped . | . . . Potential Cave-ins . | . . . Cave-ins Triggered . | . . . Exploration Rate (%) 45 | 5 58 73 Regions Visited 2 Branch Regions 1 Pre-discovered Areas . | . . . Known Exits Taken . | . . . Unknown Exits Taken 2 | 1 1 . Scrap Searched . | . . . Spaces Dug . | . . . Terrain Destroyed 4 | . 4 . Melee . | . . . Projectile . | . . . AOE 4 | . 4 . Terrain Rammed . | . . . Walls Destroyed . | . . . Machines Disabled . | . . . Actions | -11 -10 -10 --------- Run | Yrd Mat Min Total 1160 | 96 608 456 Wait . | . . . Move 1065 | 82 571 412 Hop . | . . . Pick Up 24 | 5 14 5 Fast Attach 5 | 5 . . Attach 5 | 2 2 1 Detach . | . . . Swap 14 | . 8 6 Drop 10 | 1 4 5 Fire 37 | 1 9 27 Melee . | . . . Ram . | . . . Kick . | . . . Crush . | . . . Escape Stasis . | . . . Rewire . | . . . Trap . | . . . Miscellaneous . | . . . Route ------- -11/Scrapyard -10/Materials (discovered 2 exits: [*Mat] / [*Min]) -10/Mines (discovered 4 exits: [*Mat x2] / [*Exi] / [*Sub]) History --------- Turn | Location | Event 20 | -11/Scrapyard | Discovered new exit (range 15) 124 | -11/Scrapyard | Entered Materials 300 | -10/Materials | Build established: Mutant 388 | -10/Materials | Central database locked down 551 | -10/Materials | Discovered new exit (range 16) 701 | -10/Materials | Discovered new exit (range 16) 865 | -10/Materials | Entered Mines 886 | -10/Mines | Met a Derelict bent on vengeance 932 | -10/Mines | Discovered new exit (range 14) 952 | -10/Mines | Met a Derelict testing a Signal Generator 955 | -10/Mines | Found Signal Generator 970 | -10/Mines | Deemed a non-threat by the Exiles lab entrance 971 | -10/Mines | Discovered new exit (range 5) 1193 | -10/Mines | Discovered new exit (range 10) 1218 | -10/Mines | Learned Materials trap positions 1237 | -10/Mines | Discovered new exit (range 6) 1318 | -10/Mines | Core integrity fell below 50% 1328 | -10/Mines | Core integrity fell below 20% 1352 | -10/Mines | Destroyed by Y-45 Defender with Heavy Assault Rifle Last Messages --------------- S-10 Pest destroyed. Switching to secondary target: S-10 Pest. T8-G1O(g) destroyed. S-10 Pest destroyed. Acquired 36 matter. Acquired Lgt. Angular Momentum Engine. Dropped Lgt. Ion Engine. Acquired Lgt. Angular Momentum Engine. Acquired Beamcaster. Acquired 10 matter. Acquired Lgt. Ion Engine. EXIT=FOUND K-01 Serf collects debris. Acquired derelict log, extracted data. Data stored: Materials trap records. EXIT=FOUND Machine disabled. Lgt. Angular Momentum Engine destroyed. Wheel destroyed. Y-45 Defender suffers critical hit (Burn). Map ----- +----------------------------------------------------+ | ???????????????????????????????????? | | ???????????????????????????????????? | | ???????????????????????????????????? | | ???????????????????????????????????? | | ???????????????????????????????????? | | ???????????????????????????????????? | | ???????????????????????????????????? | | ???????????????????????????????????? | | ???????????????????????????????????? | | ???????????????????????????????????? | | ?????####??????????????????????????? | | ?????# #??????????????????????????? | | ?????# ##?????????????????????????? | | ?????# ##????????????????????????? | | ?###?# ##???????????????????????? | | ?#!!## ##??????????????????????? | | #"[! # #??????????????????????? | | # + #??????????????????????? | | # + #??????????????????????? | | # !! # #??????????????????????? | | ?#!??# Y #??????????????????????? | | ?????###Y ##??????????????????????? | | ???????# ##????????? ???????????? | | ???????## #????????? #??????????? | | ????????## ##???????? #??????????? | | ?????????# @ ###?????# ??????????? | | ?????????# ##????# #??????????? | | ????####?# ###??# #??????????? | | ???## #### ##?# #??????????? | | ???# #### #?# #??????????? | | ???# #?## #?# #??????????? | | ???## #??# ##?# ##??####???? | | ????## #### #??# ### ##??? | | ?????# ## #### #??# | | ?????# ## #?# | | ?????# #?? | | ?????# ###### #??? | | ?????# ##????# ##?????? | | ?????# #????## ## ##??????? | | ?????# #???## #### ##????### | | ?????# ##### ##??### ##??## | | ?????# #?????## #### | | ?????# #??????# | | ?????###### #??????## | | ??????????# #???????######## | | ?????????## #??????????????## | | ??######## ##??????????????### | | ?## ################## | | ?# *%= | | ?# =[= !% | +----------------------------------------------------+ Best States ------------- Heat Dissipation 25 Energy Generation 18 Energy Capacity 250 Matter Stores 300 Matter Capacity 300 Sight Range 16 Terrain Scan Density 10 ECM Strength 1 Core Shielding 20 Evasion (%) 50 Recoil Reduction 2 Item Schematics ----------------- None Robot Schematics ------------------ None Fabricated ------------ Nothing Repaired ---------- Nothing Alien Tech Used ----------------- None Achievements -------------- It's Just You Risk Taker Challenges ------------ None Game ------ Seed MetaCatalystSuite Manual? 0 Play Time 00:25:03 Cumulative 1.5 hours Start 2025.08.09 @ 08:44:09 End 2025.08.09 @ 16:25:53 Sessions 1 Manual Loads 0 Difficulty Rogue Special Mode None Game No. 6 Rogue 6 Adventurer 0 Explorer 0 Win Type - Total 0 Types 0/0/0/0/0/0/0/0/0/0 Lore% 1 Gallery% 4 Achievement% 4 Wizard Run 0 Options --------- Layout 1 ASCII 0 Keyboard 0 Movement Mouse Keybinds 0 Fullscreen 2 Font 48/Crisp++ Map View 50x35 Zoom Use 0% Tactical HUD 0 Map Filters NONE Filters NONE Steam 1 RUN: 705a7f3e-2a99-45b0-8fd6-aa60502fcf60